bitfinex/quotes_ETHUSD_20250508
["timestamp","ask_amount","ask_price","bid_price","bid_amount"]
[1746727375203,4.93240705,2047.7,2047.2,9.58708285]
[1746727376544,9.81616257,2047.7,2047.2,9.58708285]
[1746727376740,4.88391784,2047.6,2047.2,4.70254038]
[1746727376910,4.88402621,2047.5,2047.2,4.70254038]
[1746727377249,4.88394253,2047.6,2047.2,9.58722102]
[1746727377539,4.9326831,2047.6,2047.2,9.58722102]
[1746727378641,4.88394253,2047.6,2047.2,9.58722102]
[1746727378845,4.88341045,2047.8,2047.2,9.58722102]
[1746727378846,4.88295384,2048.0,2047.6,4.88373056]
[1746727379155,10.05,2048.5,2047.6,4.88373056]
[1746727379156,4.88243116,2048.2,2047.7,0.8148]
[1746727379450,4.93142929,2048.1,2047.8,6.511]
[1746727379613,4.88292485,2048.0,2047.8,6.511]
[1746727380016,0.04874057,2048.2,2047.8,6.511]
[1746727380324,4.88197425,2048.4,2047.9,0.819]
[1746727380742,4.88230662,2048.3,2047.9,0.819]
[1746727380939,4.88230662,2048.3,2048.0,0.733]
[1746727381161,0.04874057,2048.4,2048.0,0.733]
[1746727381358,4.88239003,2048.2,2048.0,0.733]
[1746727381713,0.04874057,2048.5,2048.1,6.511]
[1746727382213,4.88173352,2048.5,2048.1,6.511]
[1746727382419,4.93030147,2048.6,2048.1,11.39337945]
[1746727382750,0.35997858,2049.1,2048.5,5.66271467]
[1746727382751,0.8031,2049.1,2048.5,5.66271467]
[1746727382927,4.88105957,2048.8,2048.6,6.51]
[1746727383132,4.88081117,2048.9,2048.6,6.51]
[1746727383449,4.88058193,2049.0,2048.6,11.44013392]
[1746727383628,4.92903515,2049.1,2048.7,4.88110878]
[1746727383835,4.88004014,2049.2,2048.9,0.8212]
[1746727384035,4.88060763,2049.0,2048.7,0.8212]
[1746727384226,4.88059331,2049.0,2048.7,0.8212]
[1746727384866,4.88076993,2048.9,2048.7,0.8212]
[1746727385074,4.92907639,2049.1,2048.7,0.8212]
[1746727385249,4.88047756,2049.0,2048.8,6.509]
[1746727385569,0.8021,2049.5,2049.0,0.8114]
[1746727385570,4.87929379,2049.5,2049.0,0.8114]
[1746727385729,4.87929379,2049.5,2049.1,0.04879641]
[1746727385933,4.87950339,2049.4,2049.0,5.69169224]
[1746727386756,4.87950339,2049.4,2049.0,0.8114]
[1746727387067,4.87950339,2049.4,2049.0,5.69181813]
[1746727387243,4.87950339,2049.4,2049.0,8.12903035]
[1746727387443,4.87937974,2049.5,2049.1,4.88013225]
[1746727387656,4.87937974,2049.5,2049.1,4.92892861]
[1746727387858,4.87937974,2049.5,2049.0,8.12889045]
[1746727387859,9.75884832,2049.5,2049.0,8.12889045]
[1746727388035,4.87956537,2049.4,2049.0,8.12889045]
[1746727388233,4.87956537,2049.4,2049.1,1.30094494]
[1746727388769,4.87986428,2049.3,2049.1,1.30094494]
[1746727388973,4.92887277,2049.2,2049.0,3.255]
[1746727389155,4.8801322,2049.2,2049.0,3.255]
[1746727389542,4.8801913,2049.1,2049.0,3.255]
[1746727389744,4.92893187,2049.1,2049.0,3.255]
[1746727390431,4.8801913,2049.1,2049.0,3.255]
[1746727391476,5.6509913,2049.1,2049.0,3.255]
[1746727391684,4.88066767,2048.9,2048.8,3.254]
[1746727391868,4.92940824,2048.9,2048.8,3.254]
[1746727392967,0.04874057,2049.0,2048.8,3.254]
[1746727393142,4.8805595,2049.0,2048.8,3.5794]
[1746727393469,4.87952198,2049.4,2049.0,5.65500486]
[1746727393642,4.87956742,2049.4,2049.0,5.65500486]
[1746727394571,4.87937814,2049.5,2049.1,4.88015865]
[1746727394895,4.87971502,2049.3,2049.2,3.251]
[1746727395051,4.87971502,2049.3,2049.2,6.505]
[1746727397185,4.8799625,2049.2,2049.1,6.505]
[1746727397384,4.8799625,2049.2,2049.1,3.254]
[1746727397687,4.92866079,2049.3,2049.0,3.254]
[1746727397984,4.87916572,2049.6,2049.2,4.87989113]
[1746727398185,0.84175779,2050.1,2049.4,0.7983]
[1746727398484,4.87871307,2049.8,2049.5,6.504]
[1746727398652,4.87844542,2049.9,2049.5,6.504]
[1746727398854,0.02405779,2050.0,2049.6,5.74564102]
[1746727399077,0.02405779,2050.0,2049.8,4.87851033]
[1746727399282,0.02405779,2050.0,2049.9,0.86677632]
[1746727399781,0.02405779,2050.0,2049.9,0.818]
[1746727400146,0.02405779,2050.0,2049.9,5.69628674]
[1746727400343,0.02405779,2050.0,2049.9,0.86677724]
[1746727400585,0.02405779,2050.0,2049.9,7.322]
[1746727400754,0.02405779,2050.0,2049.9,8.78851581]
[1746727401363,0.02405779,2050.0,2049.9,13.66680255]
[1746727401846,0.02405779,2050.0,2049.9,22.73622089]
[1746727402053,0.02405779,2050.0,2049.9,16.66680255]
[1746727402696,0.02405779,2050.0,2049.9,17.21680255]
[1746727402888,0.02405779,2050.0,2049.9,27.79083308]
[1746727403185,0.02405779,2050.0,2049.9,17.21680255]
[1746727403385,0.02405779,2050.0,2049.9,24.91441208]
[1746727403686,0.02405779,2050.0,2049.9,20.88562208]
[1746727404493,0.02405779,2050.0,2049.9,17.21480255]
[1746727406356,0.02405779,2050.0,2049.9,17.88362208]
[1746727407003,0.02405779,2050.0,2049.9,17.20880255]
[1746727407184,0.02405779,2050.0,2049.9,23.27822089]
[1746727407358,0.02405779,2050.0,2049.9,16.78222089]
[1746727407564,0.02405779,2050.0,2049.9,23.27822089]
[1746727411674,0.02062096,2050.2,2050.1,3.55]
[1746727411880,0.06186288,2050.2,2050.1,27.51569241]
[1746727412076,0.06186288,2050.2,2050.1,27.46693036]
[1746727414399,0.06186288,2050.2,2050.1,33.5363487]
[1746727415464,0.06186288,2050.2,2050.1,57.2435747]
[1746727415702,0.7869,2051.4,2050.8,3.0]
[1746727415905,0.00505002,2050.9,2050.8,13.94556423]
[1746727416104,0.00505002,2050.9,2050.8,20.43856423]
[1746727417081,0.00505002,2050.9,2050.8,21.26216423]
[1746727417296,0.00505002,2050.9,2050.8,24.87874723]
[1746727418717,0.00505002,2050.9,2050.8,25.79498538]
[1746727419007,1e-08,2050.9,2050.8,25.79498538]
[1746727419207,0.00421431,2051.1,2051.0,6.2058704]
[1746727419409,0.00842862,2051.1,2051.0,6.2058704]
[1746727419575,0.00842862,2051.1,2051.0,16.41395351]
[1746727420174,0.00842862,2051.1,2051.0,9.37195351]
[1746727420374,0.00842862,2051.1,2051.0,15.91269421]
[1746727420583,0.00842862,2051.1,2051.0,15.86395351]
[1746727420919,0.00842862,2051.1,2051.0,9.37195351]
[1746727421117,0.00421431,2051.1,2051.0,15.91169843]
[1746727421275,0.00421431,2051.1,2051.0,15.86295351]
[1746727421723,0.00421431,2051.1,2051.0,3.71608311]
[1746727421875,0.00421431,2051.1,2051.0,6.49]
[1746727422277,5.657847,2051.1,2051.0,6.49]
[1746727422599,0.78241431,2051.1,2051.0,3.246]
[1746727422813,5.65793158,2051.1,2051.0,3.246]
[1746727423145,5.70666347,2051.1,2050.4,4.87707307]
[1746727423437,5.70666347,2051.1,2049.8,3.66881953]
[1746727423438,4.87662147,2050.6,2049.8,3.66881953]
[1746727423616,4.87757099,2050.3,2050.1,3.246]
[1746727423820,0.04874057,2050.3,2049.5,17.562]
[1746727424001,5.63665995,2050.2,2049.6,6.49]
[1746727424332,0.04874057,2050.1,2049.6,6.49]
[1746727424486,4.87814254,2050.0,2049.6,6.49]
[1746727424684,4.92712259,2049.9,2049.6,6.49]
[1746727424917,0.04874057,2049.9,2049.7,3.246]
[1746727425120,4.87812177,2050.0,2049.7,3.246]
[1746727425121,0.00421431,2050.0,2049.7,3.246]
[1746727425331,0.05295488,2050.0,2049.7,3.246]
[1746727425551,4.87838521,2049.9,2049.7,3.246]
[1746727425921,4.93110189,2050.0,2049.7,3.246]
[1746727426105,4.87834366,2049.9,2049.7,3.246]
[1746727426310,4.93118472,2050.0,2049.7,3.246]
[1746727426507,4.87828803,2049.9,2049.7,3.246]
[1746727427940,4.87828803,2049.9,2049.8,3.0]
[1746727428811,4.87828803,2049.9,2049.7,3.246]
[1746727429014,0.781,2049.7,2048.7,0.19517916]
[1746727429351,0.781,2049.7,2047.8,5.2059521]
[1746727429352,0.7556,2048.4,2047.8,5.2059521]
[1746727429510,4.88295361,2048.0,2047.8,5.2059521]
[1746727429708,4.88251696,2048.2,2047.8,5.2059521]
[1746727429948,4.88251696,2048.2,2047.9,1.05776313]
[1746727430241,4.88251696,2048.2,2047.9,4.00893803]
[1746727430447,4.88251696,2048.2,2047.7,10.08931127]
[1746727430448,0.04874057,2048.1,2047.7,10.08931127]
[1746727430743,4.93105282,2048.3,2047.9,3.0]
[1746727431113,4.88238922,2048.2,2047.8,3.0]
[1746727431308,0.04874057,2048.1,2047.7,5.2059521]
[1746727431509,4.88306746,2047.9,2047.7,5.2059521]
[1746727431705,4.93180803,2047.9,2047.7,5.2059521]
[1746727431905,0.04874057,2048.2,2047.8,4.88318221]
[1746727432139,0.04874057,2048.2,2047.7,11.02624915]
[1746727432346,4.88328938,2047.8,2047.7,5.2059521]
[1746727432567,5.70362995,2047.8,2047.7,5.2059521]
[1746727433964,4.88421634,2047.5,2047.2,3.0]
[1746727434265,0.04874057,2047.4,2047.2,3.0]
[1746727434776,4.93227669,2047.7,2047.2,3.04884576]
[1746727434918,0.04874057,2047.7,2047.3,1.1180662]
[1746727435124,0.04874057,2047.7,2047.3,6.00244569]
[1746727435320,0.04874057,2047.7,2047.5,3.0]
[1746727435538,5.70364766,2047.8,2047.4,3.0]
[1746727435835,0.04874057,2047.7,2047.4,3.0]
[1746727436074,0.04874057,2047.7,2047.3,9.00242342]
[1746727436284,0.04874057,2047.7,2046.7,3.249]
[1746727436285,4.93233478,2047.7,2046.7,3.249]
[1746727436595,5.67176038,2047.1,2046.7,8.13489954]
[1746727436867,0.04874057,2047.0,2046.8,3.0]
[1746727437074,0.04874057,2047.0,2046.7,3.249]
[1746727437233,4.9340814,2047.0,2046.7,6.495]
[1746727437569,0.04874057,2047.0,2046.8,3.0]
[1746727439167,4.93404314,2047.0,2046.8,3.0]
[1746727439343,4.88543651,2046.9,2046.8,3.0]
[1746727440245,4.8856752,2046.8,2046.7,3.249]
[1746727440546,4.93441577,2046.8,2046.7,3.249]
[1746727441160,4.93441577,2046.8,2046.3,3.247]
[1746727441161,0.29764527,2046.8,2046.3,3.247]
[1746727441368,4.88721033,2046.2,2045.6,4.88845014]
[1746727441679,4.88721033,2046.2,2045.1,21.61928584]
[1746727441680,4.88824411,2045.8,2045.2,4.0153]
[1746727441863,4.88858832,2045.6,2045.3,1.21528486]
[1746727442047,4.9375836,2045.5,2045.2,3.249]
[1746727442247,0.04874057,2045.5,2045.2,3.249]
[1746727442558,0.04874057,2045.8,2045.4,4.88891776]
[1746727442766,0.04874057,2045.8,2045.4,4.88883365]
[1746727442936,0.04874057,2045.8,2045.6,4.88836698]
[1746727443132,4.93672962,2045.9,2045.3,3.0]
[1746727443359,4.88808309,2045.8,2045.5,3.0]
[1746727443741,0.04874057,2045.9,2045.3,6.37989829]
[1746727443742,4.8883036,2045.7,2045.3,6.37989829]
[1746727443947,4.8883036,2045.7,2045.4,3.251]
[1746727443948,0.04874057,2045.6,2045.4,3.251]
[1746727444170,0.04874057,2045.6,2045.5,3.0]
[1746727444371,0.04874057,2045.8,2045.5,4.88872317]
[1746727444582,0.04874057,2045.8,2045.5,3.0]
[1746727445446,0.04874057,2045.8,2045.5,7.88873865]
[1746727445765,0.04874057,2045.8,2045.6,4.88851787]
[1746727445963,0.04874057,2045.9,2045.6,4.88851787]
[1746727446269,4.93657924,2045.9,2045.5,7.88868862]
[1746727446967,0.04874057,2045.9,2045.4,3.251]
[1746727447277,0.04874057,2045.9,2045.6,4.8883988]
[1746727447441,4.88810018,2045.8,2045.4,3.251]
[1746727447638,0.04874057,2045.7,2045.4,8.13983761]
[1746727447835,0.04874057,2045.8,2045.5,4.8887353]
[1746727448072,0.04874057,2045.8,2045.5,4.88859258]
[1746727448269,0.04874057,2045.8,2045.5,4.88878024]
[1746727448769,0.04874057,2045.8,2045.6,4.88852979]
[1746727449065,0.04874057,2045.9,2045.5,8.138633]
[1746727449266,0.04874057,2045.9,2045.6,7.88840706]
[1746727449565,0.04874057,2046.0,2045.7,3.0]
[1746727449989,0.04874057,2046.0,2045.8,4.88804227]
[1746727450271,4.93585563,2046.2,2045.6,3.0]
[1746727450448,4.88815962,2045.8,2045.5,3.25]
[1746727450766,0.04874057,2045.7,2045.5,3.25]
[1746727451765,0.04874057,2045.8,2045.6,4.88844615]
[1746727451970,0.04874057,2045.8,2045.5,7.88864992]
[1746727452268,4.9368361,2045.8,2045.5,3.0]
[1746727452436,4.9368361,2045.8,2045.4,4.88890035]
[1746727452437,4.9368361,2045.8,2045.4,7.88896129]
[1746727452781,0.04874057,2045.8,2045.4,7.88883756]
[1746727452979,0.04874057,2045.9,2045.7,3.0]
[1746727453273,0.04874057,2045.9,2045.4,5.92311131]
[1746727453274,0.04874057,2045.9,2045.5,3.0]
[1746727453459,4.888071,2045.8,2045.4,9.93449509]
[1746727453769,0.04874057,2045.7,2045.5,7.88876365]
[1746727454073,0.04874057,2045.8,2045.6,7.88853774]
[1746727454272,0.04874057,2045.8,2045.6,3.0]
[1746727454842,0.04874057,2045.8,2045.6,7.88851551]
[1746727455080,0.04874057,2045.9,2045.6,3.0]
[1746727455280,4.88815075,2045.8,2045.4,9.9345346]
[1746727455446,0.04874057,2045.7,2045.4,3.0]
[1746727455645,4.88838378,2045.7,2045.4,3.0]
[1746727455977,0.04874057,2045.6,2045.4,7.88901429]
[1746727456174,0.04874057,2045.7,2045.4,3.0]
[1746727456343,4.88854166,2045.6,2045.3,6.502]
[1746727456545,4.88854166,2045.6,2045.4,3.0]
[1746727457051,4.93717838,2045.7,2045.4,3.0]
[1746727457264,0.04874057,2045.8,2045.6,3.0]
[1746727457436,4.9368849,2045.8,2045.4,9.81693138]
[1746727457642,4.93681165,2045.8,2045.4,4.92805166]
[1746727457842,4.93681165,2045.8,2045.5,3.0]
[1746727458285,4.88807108,2045.8,2045.5,3.0]
[1746727458583,4.93714625,2045.7,2045.5,3.0]
[1746727458883,0.04874057,2045.8,2045.5,7.88872435]
[1746727459042,0.04874057,2045.8,2045.5,7.00946339]
[1746727460279,4.93672368,2045.9,2045.5,7.00946339]
[1746727460788,4.93672368,2045.9,2045.5,2.12077773]
[1746727460789,4.88807722,2045.8,2045.5,2.12077773]
[1746727461275,0.04874057,2045.9,2045.6,7.88834872]
[1746727461574,4.93657377,2045.9,2045.6,3.0]
[1746727462154,0.04874057,2045.9,2045.7,4.88830027]
[1746727462354,0.04874057,2045.9,2045.6,3.0]
[1746727462559,4.88792147,2045.9,2045.6,3.0]
[1746727462759,4.93666204,2045.9,2045.6,3.0]
[1746727463280,4.93669178,2045.9,2045.6,3.0]
[1746727463576,4.88807689,2045.8,2045.5,3.0]
[1746727463775,4.93669997,2045.9,2045.5,7.88874071]
[1746727463981,0.04874057,2045.9,2045.6,7.88853028]
[1746727464282,4.93672763,2045.9,2045.6,3.0]
[1746727464954,4.88807362,2045.8,2045.6,3.0]
[1746727465159,4.93672763,2045.9,2045.6,3.0]
[1746727465886,4.88817207,2045.8,2045.6,3.0]
[1746727466196,4.93704286,2045.7,2045.6,3.0]
[1746727466486,4.88884354,2045.5,2045.2,3.251]
[1746727466698,4.93784532,2045.4,2045.3,3.0]
[1746727466868,4.93784532,2045.4,2045.2,3.251]
[1746727467056,4.88925829,2045.3,2045.2,3.251]
[1746727467385,4.93792018,2045.4,2045.2,3.251]
[1746727467560,0.45322117,2045.3,2045.2,3.251]
[1746727467768,0.45322117,2045.3,2045.2,6.251]
[1746727468304,0.45322117,2045.3,2045.2,10.17914527]
[1746727468590,0.45322117,2045.3,2045.2,16.39774262]
[1746727468974,9.82379138,2046.1,2045.6,4.88833756]
[1746727469302,9.82379138,2046.1,2045.3,7.889245]
[1746727469303,0.04874057,2046.1,2045.7,6.502]
[1746727469511,0.45479766,2046.0,2045.9,4.88764579]
[1746727469802,0.45479766,2046.0,2045.9,16.3843436]
[1746727470006,0.04874057,2046.6,2046.3,4.88686432]
[1746727470299,0.7652,2047.1,2046.6,3.0]
[1746727470501,0.45487031,2046.5,2046.4,8.69323017]
[1746727470797,0.45487031,2046.5,2046.4,16.90429883]
[1746727470954,4.88473083,2047.2,2046.8,3.0]
[1746727471154,4.88472059,2047.2,2047.0,3.0]
[1746727471389,4.88472059,2047.2,2047.0,6.251]
[1746727471774,5.71192171,2047.3,2047.0,6.251]
[1746727472409,4.88436428,2047.4,2047.0,11.13619005]
[1746727472698,0.04874057,2047.3,2047.0,11.13619005]
[1746727473706,4.93326678,2047.3,2047.0,6.24167724]
[1746727473859,0.04874057,2047.3,2046.9,3.25]
[1746727474057,5.71202235,2047.5,2046.8,3.251]
[1746727474058,4.88533625,2047.0,2046.8,3.251]
[1746727474269,0.04874057,2047.0,2046.8,6.501]
[1746727474475,5.74237724,2047.0,2046.8,6.501]
[1746727474799,5.74237724,2047.0,2046.8,3.251]
[1746727474999,5.74237724,2047.0,2046.8,6.501]
[1746727475189,4.88543651,2046.9,2046.8,6.501]
[1746727475384,4.88543651,2046.9,2046.4,8.19004709]
[1746727475385,4.88543651,2046.9,2046.5,4.88629194]
[1746727475584,0.04874057,2046.8,2046.5,6.19391648]
[1746727475786,4.88449424,2047.3,2046.7,7.88570488]
[1746727475787,4.88484066,2047.2,2046.7,7.88570488]
[1746727476079,0.04874057,2047.1,2046.7,7.88570488]
[1746727476998,0.04874057,2047.1,2046.8,4.88566251]
[1746727477204,0.04874057,2047.1,2046.7,3.0]
[1746727477205,4.93384992,2047.1,2046.7,3.0]
[1746727477386,4.93384992,2047.1,2046.7,7.88590919]
[1746727477587,0.04874057,2047.1,2046.8,4.88554748]
[1746727477788,0.04874057,2047.1,2046.9,4.88543015]
[1746727478093,0.04874057,2047.3,2047.0,4.8851854]
[1746727478293,4.93322421,2047.3,2047.1,6.499]
[1746727478611,4.93322421,2047.3,2047.2,6.499]
[1746727479108,4.93322421,2047.3,2047.2,3.249]
[1746727479612,4.93308206,2047.4,2047.2,3.249]
[1746727479777,4.93308206,2047.4,2047.0,4.8851705]
[1746727479979,4.88451638,2047.3,2047.1,6.499]
[1746727480178,0.04874057,2047.2,2047.1,6.499]
[1746727480423,4.93337176,2047.3,2047.1,6.499]
[1746727480612,4.93332732,2047.3,2047.1,6.499]
[1746727480814,0.04874057,2047.3,2047.1,6.499]
[1746727481216,0.04874057,2047.3,2047.0,4.88509064]
[1746727481398,0.04874057,2047.3,2047.1,6.499]
[1746727481707,4.93311823,2047.4,2047.1,6.499]
[1746727482482,0.04874057,2047.4,2047.1,6.499]
[1746727482681,0.04874057,2047.7,2047.3,4.88447741]
[1746727482886,0.04874057,2047.7,2047.4,4.88421134]
[1746727483081,0.8127,2047.8,2047.6,4.88355328]
[1746727483323,0.00160009,2047.9,2047.7,4.88351066]
[1746727483618,0.00160009,2047.9,2047.8,4.88328938]
[1746727485122,0.00160009,2047.9,2047.8,7.88328938]
[1746727486415,0.00160009,2047.9,2047.8,7.93211615]
[1746727487409,0.00160009,2047.9,2047.8,7.88328938]
[1746727487721,0.00160009,2047.9,2047.8,11.83050501]
[1746727487893,0.00160009,2047.9,2047.8,11.78168255]
[1746727488225,0.00160009,2047.9,2047.8,12.33168255]
[1746727492491,0.00160009,2047.9,2047.8,15.26368255]
[1746727492691,0.00160009,2047.9,2047.8,12.33168255]
[1746727493514,0.00160009,2047.9,2047.8,11.95130655]
[1746727493898,0.8062,2049.1,2048.8,4.88088458]
[1746727494104,0.8062,2049.1,2049.0,3.0]
[1746727494420,4.92873818,2049.2,2049.0,3.0]
[1746727495010,0.04874057,2049.2,2049.0,3.0]
[1746727495323,4.87941556,2049.5,2049.0,3.0]
[1746727495626,5.75945613,2049.5,2049.1,4.88017729]
[1746727495930,5.75945613,2049.5,2049.0,3.0]
[1746727496304,4.87973914,2049.3,2049.0,3.0]
[1746727496691,4.87961607,2049.4,2049.0,7.88042892]
[1746727496894,0.8313,2049.5,2049.0,7.88042892]
[1746727496895,5.75942528,2049.5,2049.0,7.88028069]
[1746727497114,4.87976741,2049.3,2049.0,3.0]
[1746727498022,4.87981146,2049.3,2049.0,3.0]
[1746727498227,4.87991916,2049.3,2049.0,3.0]
[1746727498638,4.87973632,2049.3,2049.0,3.0]
[1746727498791,4.92841901,2049.4,2049.0,7.88040589]
[1746727498993,5.71064697,2049.5,2049.0,7.92904232]
[1746727499223,5.71056579,2049.5,2049.1,3.0]
[1746727499432,0.04874057,2049.4,2048.9,3.0]
[1746727499627,4.88004709,2049.2,2049.1,3.0]
[1746727499795,0.04874057,2049.4,2049.0,6.49]
[1746727500127,4.92835897,2049.4,2049.0,6.49]
[1746727500453,5.71065449,2049.5,2049.1,4.88010486]
[1746727500728,5.75939506,2049.5,2049.1,4.88010486]
[1746727501093,4.8794793,2049.4,2048.9,4.88054436]
[1746727501297,4.87998319,2049.2,2049.0,6.49]
[1746727501815,4.92855058,2049.3,2049.0,6.49]
[1746727502023,4.92846637,2049.3,2049.0,6.49]
[1746727502229,4.87995904,2049.2,2049.0,3.245]
[1746727502409,4.87995904,2049.2,2049.1,3.244]
[1746727502593,4.92869961,2049.2,2049.1,3.244]
[1746727503297,0.04874057,2049.2,2049.1,3.244]
[1746727503739,0.04874057,2049.3,2049.1,3.244]
[1746727504565,0.04874057,2049.4,2049.1,3.244]
[1746727504743,4.87992332,2049.3,2049.2,3.244]
[1746727504920,4.87992332,2049.3,2049.1,3.244]
[1746727505120,0.04874057,2049.2,2049.1,3.244]
[1746727505665,0.04874057,2049.3,2049.1,3.244]
[1746727506255,4.92850243,2049.3,2049.1,3.244]
[1746727506950,0.04874057,2049.3,2049.1,3.244]
[1746727507528,4.92855655,2049.3,2049.1,3.244]
[1746727507747,4.87995315,2049.2,2049.1,3.244]
[1746727507963,4.88078584,2048.9,2048.6,3.244]
[1746727508148,0.04874057,2048.9,2048.6,11.36937269]
[1746727508320,4.92949833,2048.9,2048.7,3.0]
[1746727508527,0.04874057,2048.9,2048.7,6.243]
[1746727509138,0.04874057,2048.9,2048.7,11.12412169]
[1746727509461,0.04874057,2048.9,2048.7,11.12404865]
[1746727509660,0.8061,2049.0,2048.7,11.12404865]
[1746727509863,0.04874057,2048.9,2048.7,6.243]
[1746727510155,0.04874057,2048.9,2048.7,11.12404566]
[1746727510341,4.8800882,2049.2,2048.7,6.243]
[1746727510342,0.04874057,2049.1,2048.7,6.243]
[1746727510546,0.04874057,2049.1,2048.8,4.88090589]
[1746727511536,0.04874057,2049.1,2048.9,3.0]
[1746727512270,0.04874057,2049.1,2048.8,7.88087843]
[1746727512629,0.04874057,2049.1,2048.9,4.88064665]
[1746727512843,0.80344057,2049.2,2048.9,4.8804925]
[1746727513162,10.05,2049.6,2049.1,4.8801913]
[1746727513163,0.7806,2049.6,2049.1,4.8801913]
[1746727513340,0.7806,2049.6,2049.3,4.87959689]
[1746727513657,0.04874057,2049.6,2049.4,4.87944354]
[1746727513865,0.7806,2049.8,2049.5,4.87923883]
[1746727513866,0.04874057,2049.7,2049.5,4.87923883]
[1746727514462,5.7079497,2049.8,2049.4,7.87933515]
[1746727514665,5.7079497,2049.8,2049.5,6.487]
[1746727514666,4.87900078,2049.6,2049.5,6.487]
[1746727514851,4.92774135,2049.6,2049.4,3.243]
[1746727515026,0.04874057,2049.6,2049.4,3.243]
[1746727515361,0.04874057,2049.7,2049.4,8.1223488]
[1746727515524,0.7806,2049.8,2049.5,4.87915952]
[1746727515724,0.04874057,2049.9,2049.5,4.87910927]
[1746727515930,0.27237549,2049.8,2049.5,9.75815327]
[1746727516125,5.15099446,2049.8,2049.4,8.92804352]
[1746727516322,0.04874057,2049.7,2049.4,4.87934352]
[1746727516527,0.04874057,2049.7,2049.5,6.487]
[1746727516739,4.92769952,2049.7,2049.5,6.487]
[1746727516960,5.97909074,2049.6,2049.5,3.243]
[1746727517161,5.97908871,2049.6,2049.1,5.63787926]
[1746727517380,4.87956823,2049.4,2048.9,4.88051027]
[1746727517534,0.8275,2049.2,2048.5,0.7788]
[1746727517739,5.20150638,2049.1,2048.6,11.36717244]
[1746727518058,5.20150638,2049.1,2048.6,11.36724284]
[1746727518371,4.88077693,2048.9,2048.7,3.0]
[1746727518570,4.88051316,2049.0,2048.6,11.36734769]
[1746727518868,0.32111606,2048.9,2048.7,3.0]
[1746727519272,0.32111606,2048.9,2048.6,11.36734769]
[1746727519273,0.32111606,2048.9,2048.6,11.36723222]
[1746727519577,0.32111606,2048.9,2048.7,3.0]
[1746727519936,0.04874057,2048.9,2048.7,3.0]
[1746727520139,0.04874057,2049.0,2048.7,3.0]
[1746727520438,4.87940018,2049.5,2048.7,8.74173557]
[1746727520762,0.84304057,2049.4,2049.2,4.87983121]
[1746727520951,0.04874057,2049.5,2049.2,4.87983121]
[1746727521264,0.04874057,2049.5,2049.2,4.87976588]
[1746727521265,0.27274419,2049.4,2049.2,4.87976588]
[1746727521574,0.27274419,2049.4,2049.2,4.87989519]
[1746727521875,0.27274419,2049.4,2049.3,4.87971502]
[1746727522036,0.27274419,2049.4,2049.2,4.87981585]
[1746727522236,0.27274419,2049.4,2049.3,4.87971502]
[1746727522438,0.27274419,2049.4,2049.2,4.87978705]
[1746727522662,5.71034644,2049.6,2049.1,12.19925147]
[1746727523006,5.71034644,2049.6,2049.2,4.87991164]
[1746727523272,4.87966016,2049.4,2049.0,3.244]
[1746727523436,0.04874057,2049.3,2049.0,3.244]
[1746727523635,0.04874057,2049.3,2049.0,8.12442066]
[1746727524170,0.27290742,2049.2,2049.0,8.12442066]
[1746727524669,0.27290742,2049.2,2049.1,4.8801913]
[1746727525352,0.27290742,2049.2,2049.0,8.12430883]
[1746727525666,0.27290742,2049.2,2049.1,4.8801913]
[1746727526061,0.27290742,2049.3,2049.1,4.8801913]
[1746727526792,0.27290742,2049.3,2049.0,3.244]
[1746727526937,0.04874057,2049.5,2049.2,4.87995315]
[1746727527431,0.00421431,2050.0,2049.9,4.87828674]
[1746727527639,0.00421431,2050.0,2049.9,8.12028674]
[1746727527933,0.05295488,2050.0,2049.9,3.242]
[1746727528465,0.32575724,2050.0,2049.9,3.242]
[1746727528872,0.32575724,2050.0,2049.9,8.12028674]
[1746727529070,0.27701667,2050.0,2049.9,8.12028674]
[1746727529258,0.27701667,2050.0,2049.9,3.242]
[1746727529771,5.69733463,2049.8,2049.5,3.241]
[1746727529981,0.8187,2049.8,2049.6,4.87900078]
[1746727530172,0.04874057,2049.7,2049.5,8.12010202]
[1746727530478,0.04874057,2049.7,2049.3,3.0]
[1746727530693,0.04874057,2049.7,2049.5,4.87921288]
[1746727530887,0.04874057,2049.7,2049.5,4.87908418]
[1746727531096,0.04874057,2049.8,2049.7,4.87876274]
[1746727531275,0.04874057,2049.8,2049.6,4.87885152]
[1746727531781,0.28933746,2049.7,2049.5,4.87907309]
[1746727531987,4.92711577,2049.9,2049.5,4.87907309]
[1746727532185,0.28713379,2049.8,2049.5,4.87907309]
[1746727532796,5.16575617,2049.8,2049.4,8.12024195]
[1746727533005,0.04874057,2049.7,2049.4,8.12024195]
[1746727533176,0.28610356,2049.6,2049.4,12.99952635]
[1746727533380,0.28610356,2049.6,2049.5,4.87923883]
[1746727533578,0.04874057,2049.9,2049.5,9.75847766]
[1746727533802,0.28713379,2049.8,2049.5,9.75847766]
[1746727533990,0.28713379,2049.8,2049.5,4.87923883]
[1746727534765,0.28713379,2049.8,2049.6,4.87890843]
[1746727535822,0.28713379,2049.8,2049.5,4.87910647]
[1746727536317,0.28713379,2049.8,2049.5,4.87921528]
[1746727536675,0.28713379,2049.8,2049.4,8.12032324]
[1746727536879,0.28713379,2049.8,2049.5,4.87922489]
[1746727537617,0.28713379,2049.8,2049.6,4.87889768]
[1746727537818,0.28713379,2049.8,2049.7,7.87876274]
[1746727538022,0.28713379,2049.8,2049.7,9.77018236]
[1746727538226,0.00421431,2050.0,2049.8,4.87850546]
[1746727538440,0.00421431,2050.0,2049.9,3.241]
[1746727538607,0.05295488,2050.0,2049.7,4.8786117]
[1746727538795,0.00421431,2050.0,2049.8,8.11943012]
[1746727538995,0.00421431,2050.0,2049.9,4.87828674]
[1746727539293,0.00421431,2050.0,2049.8,8.11939555]
[1746727539615,0.00421431,2050.0,2049.8,8.11937172]
[1746727539934,0.00421431,2050.0,2049.9,4.87828674]
[1746727541711,0.31808866,2050.0,2049.7,3.0]
[1746727541930,0.31808866,2050.0,2049.7,11.11967589]
[1746727542138,5.19623549,2050.0,2049.7,3.241]
[1746727542610,0.7594,2049.9,2049.7,3.241]
[1746727542937,0.26383222,2049.8,2049.7,8.11976274]
[1746727543140,4.87912761,2049.6,2049.1,4.8801836]
[1746727543292,4.92805921,2049.5,2049.0,4.880222]
[1746727543640,4.92805921,2049.5,2049.3,4.87958744]